bitfinex/quotes_ETHUSD_20250525
["timestamp","ask_amount","ask_price","bid_price","bid_amount"]
[1748149854084,0.37229784,2508.9,2508.7,6.361]
[1748149854811,0.7544,2509.0,2508.7,6.361]
[1748149855100,1.87492756,2509.0,2508.2,0.7744]
[1748149855252,1.87492756,2509.0,2508.3,6.361]
[1748149855592,1.87492756,2509.0,2508.2,0.7744]
[1748149855794,0.04982215,2508.9,2508.2,0.7744]
[1748149856126,0.04982215,2508.9,2508.1,0.05]
[1748149856127,0.8322,2508.6,2508.3,6.361]
[1748149856708,0.37255263,2508.5,2508.3,6.361]
[1748149857414,0.8322,2508.6,2508.3,6.361]
[1748149857559,1.15422,2508.6,2508.4,20.968]
[1748149858611,0.8322,2508.6,2508.4,20.968]
[1748149860494,0.8322,2508.6,2508.3,6.361]
[1748149861223,0.8322,2508.6,2508.1,0.05]
[1748149861429,0.8322,2508.6,2508.4,6.362]
[1748149862651,2.388,2508.8,2508.4,6.362]
[1748149862803,1.2710596,2508.7,2508.4,6.362]
[1748149864020,1.2710596,2508.7,2508.5,6.362]
[1748149866406,10.32259604,2508.9,2508.5,7.1203]
[1748149866407,9.50079604,2508.9,2508.5,7.1203]
[1748149867594,9.50079604,2508.9,2508.6,26.677]
[1748149868248,9.50079604,2508.9,2508.6,14.316]
[1748149868425,9.50079604,2508.9,2508.7,12.997]
[1748149868630,1.30093236,2508.8,2508.3,0.7583]
[1748149868856,9.50079604,2508.9,2508.3,0.7583]
[1748149869351,0.37173168,2508.8,2508.3,0.7583]
[1748149869514,0.37173168,2508.8,2508.4,6.362]
[1748149870364,9.50079604,2508.9,2508.4,6.362]
[1748149874536,9.50079604,2508.9,2508.5,0.7879]
[1748149877447,9.50079604,2508.9,2508.6,26.676]
[1748149877962,9.50079604,2508.9,2508.6,6.635]
[1748149879273,9.50079604,2508.9,2508.5,8.7879]
[1748149879692,0.7723,2508.8,2508.3,0.8016]
[1748149879892,3.21012659,2508.8,2508.4,6.362]
[1748149880177,3.1603,2508.8,2508.4,6.362]
[1748149880574,0.7723,2508.6,2508.5,6.362]
[1748149880877,2.0384096,2508.6,2508.5,6.362]
[1748149881981,2.0384096,2508.6,2508.1,0.05]
[1748149882183,2.0384096,2508.6,2508.5,6.362]
[1748149883257,2.0384096,2508.6,2508.1,0.05]
[1748149883469,2.0384096,2508.6,2508.5,6.362]
[1748149884582,10.41032082,2508.6,2508.5,6.362]
[1748149885180,10.41032082,2508.6,2508.1,0.05]
[1748149885387,10.41032082,2508.6,2508.5,6.362]
[1748149887558,10.41032082,2508.6,2508.5,27.312]
[1748149889553,10.41032082,2508.6,2508.5,6.635]
[1748149889782,10.41032082,2508.6,2508.5,12.997]
[1748149891382,2.41032082,2508.6,2508.5,12.997]
[1748149892401,11.91111686,2508.6,2508.1,0.05]
[1748149892692,11.91111686,2508.6,2508.2,6.362]
[1748149892693,1.42991169,2508.5,2508.2,6.362]
[1748149892992,1.80182291,2508.5,2508.2,6.362]
[1748149893855,1.42991169,2508.5,2508.2,6.362]
[1748149894547,1.42991169,2508.5,2508.3,6.362]
[1748149894765,13.27039604,2508.4,2508.1,0.05]
[1748149894988,13.27039604,2508.4,2508.2,6.362]
[1748149894989,12.42929515,2508.3,2508.2,6.362]
[1748149895190,21.88025777,2508.3,2508.2,6.362]
[1748149895389,24.81825777,2508.3,2508.2,6.362]
[1748149895689,25.64985777,2508.3,2508.2,6.362]
[1748149895907,26.02159063,2508.3,2508.2,6.362]
[1748149896300,2.938,2508.2,2508.1,0.05]
[1748149896516,5.96689192,2508.2,2508.1,6.413]
[1748149896659,5.41689192,2508.2,2508.1,6.413]
[1748149897176,5.41689192,2508.2,2508.1,0.05]
[1748149897381,5.41689192,2508.2,2508.1,6.413]
[1748149897582,5.41689192,2508.2,2508.1,27.367]
[1748149899900,0.37173286,2508.2,2508.1,27.367]
[1748149900798,18.33239604,2508.3,2508.1,27.367]
[1748149901194,18.33239604,2508.3,2508.1,13.05]
[1748149903381,10.33239604,2508.3,2508.1,13.05]
[1748149905109,8.0,2508.2,2508.1,0.05]
[1748149905322,10.0720396,2508.2,2508.1,6.413]
[1748149905890,19.57283564,2508.2,2508.1,6.413]
[1748149906428,17.50079604,2508.2,2508.1,6.413]
[1748149906632,9.50079604,2508.2,2508.1,6.413]
[1748149907507,9.50079604,2508.2,2508.1,33.097]
[1748149908532,9.50079604,2508.2,2508.1,27.37]
[1748149910239,9.50079604,2508.2,2508.1,6.413]
[1748149911019,17.8726193,2508.2,2508.1,6.413]
[1748149912237,17.50079604,2508.2,2508.1,6.413]
[1748149915652,17.50079604,2508.2,2508.1,7.2087]
[1748149917471,17.50079604,2508.2,2508.1,27.2547]
[1748149917635,8.0,2508.2,2508.1,13.8467]
[1748149919128,8.0,2508.2,2508.1,7.2087]
[1748149920269,8.0,2508.2,2508.1,0.8457]
[1748149920568,8.0,2508.2,2508.1,7.2087]
[1748149923264,8.0,2508.2,2508.1,0.8457]
[1748149923567,8.0,2508.2,2508.1,7.2087]
[1748149925592,8.0,2508.2,2508.1,0.8457]
[1748149925758,8.8269,2508.6,2508.1,7.2087]
[1748149925956,2.0715696,2508.5,2508.1,7.2087]
[1748149926809,0.37219387,2508.4,2508.1,7.2087]
[1748149927506,0.37219387,2508.4,2508.2,26.683]
[1748149927809,2.0715696,2508.5,2508.2,26.683]
[1748149928410,2.0715696,2508.5,2508.1,7.2087]
[1748149928411,3.98923411,2508.5,2508.1,0.05]
[1748149928707,1.54731341,2508.4,2508.2,6.363]
[1748149929099,0.8269,2508.4,2508.2,6.363]
[1748149929498,9.50079604,2508.3,2508.2,6.363]
[1748149929669,9.87305885,2508.3,2508.2,6.363]
[1748149931324,9.87305885,2508.3,2508.1,0.05]
[1748149931529,9.87305885,2508.3,2508.2,6.363]
[1748149931733,11.18185473,2508.3,2508.2,6.363]
[1748149932892,11.18185473,2508.3,2508.1,0.05]
[1748149933195,11.18185473,2508.3,2508.2,6.363]
[1748149934229,11.18185473,2508.3,2508.1,0.05]
[1748149934528,21.56985473,2508.3,2508.2,6.363]
[1748149937536,21.56985473,2508.3,2508.2,27.317]
[1748149937902,13.56985473,2508.3,2508.2,12.998]
[1748149940034,13.56985473,2508.3,2508.2,6.363]
[1748149942903,14.39275473,2508.3,2508.1,0.05]
[1748149943097,13.08395885,2508.3,2508.2,6.364]
[1748149944201,13.08395885,2508.3,2508.1,0.05]
[1748149944402,13.08395885,2508.3,2508.2,6.364]
[1748149947546,13.08395885,2508.3,2508.2,27.318]
[1748149949721,13.08395885,2508.3,2508.2,12.999]
[1748149949933,14.58412119,2508.3,2508.2,12.999]
[1748149951658,14.58412119,2508.3,2508.2,6.364]
[1748149953167,2.938,2508.2,2508.1,0.05]
[1748149953338,4.85566451,2508.2,2508.1,0.05]
[1748149953726,4.85566451,2508.2,2508.1,6.414]
[1748149953932,6.56084308,2508.2,2508.1,6.414]
[1748149954132,6.93310589,2508.2,2508.1,6.414]
[1748149955629,6.93310589,2508.2,2508.1,0.05]
[1748149955867,6.93310589,2508.2,2508.1,6.414]
[1748149957667,6.93310589,2508.2,2508.1,27.369]
[1748149958979,16.43390193,2508.2,2508.1,27.369]
[1748149959670,14.51623742,2508.2,2508.1,27.369]
[1748149961752,14.51623742,2508.2,2508.1,6.414]
[1748149961951,14.51623742,2508.2,2508.1,0.05]
[1748149962288,14.51623742,2508.2,2508.1,6.414]
[1748149962594,13.96623742,2508.2,2508.1,6.414]
[1748149963097,12.26105885,2508.2,2508.1,6.414]
[1748149965115,12.26105885,2508.2,2508.1,7.2357]
[1748149965116,9.87305885,2508.2,2508.1,7.2357]
[1748149967570,9.87305885,2508.2,2508.1,28.1897]
[1748149967994,9.87305885,2508.2,2508.1,13.8697]
[1748149968690,9.87305885,2508.2,2508.1,7.2357]
[1748149971517,9.50079604,2508.2,2508.1,7.2357]
[1748149976080,10.45087564,2508.2,2508.1,0.05]
[1748149976284,16.08524015,2508.2,2508.1,0.05]
[1748149976491,16.08524015,2508.2,2508.1,6.414]
[1748149976698,16.45723426,2508.2,2508.1,6.414]
[1748149977366,24.45723426,2508.2,2508.1,0.05]
[1748149977582,24.45723426,2508.2,2508.1,27.365]
[1748149978612,22.53956975,2508.2,2508.1,27.365]
[1748149979219,22.53956975,2508.2,2508.1,6.414]
[1748149981778,10.82286975,2508.2,2508.1,6.414]
[1748149982472,9.87279015,2508.2,2508.1,6.414]
[1748149982678,9.87279015,2508.2,2508.1,7.2054]
[1748149982902,9.87279015,2508.2,2508.1,6.414]
[1748149984333,9.87279015,2508.2,2508.1,7.2054]
[1748149984910,0.37199411,2508.2,2508.1,7.2054]
[1748149985122,2.00053705,2508.6,2508.2,0.7914]
[1748149985909,1.09375581,2508.6,2508.3,6.364]
[1748149986226,1.09375581,2508.6,2508.4,6.364]
[1748149987298,9.50079604,2508.7,2508.4,6.364]
[1748149987505,9.50079604,2508.7,2508.5,26.68]
[1748149987701,9.50079604,2508.7,2508.5,20.953]
[1748149988908,9.50079604,2508.7,2508.4,6.364]
[1748149990960,9.50079604,2508.7,2508.5,0.7914]
[1748149995643,9.50079604,2508.7,2508.6,6.363]
[1748149996050,10.45087564,2508.7,2508.2,0.7914]
[1748149996222,9.50079604,2508.7,2508.3,6.363]
[1748149997539,9.50079604,2508.7,2508.4,26.719]
[1748149997740,11.1449,2508.6,2508.5,6.677]
[1748149997942,11.1449,2508.6,2508.5,13.039]
[1748149998139,13.77255797,2508.6,2508.5,13.039]
[1748150000126,13.77255797,2508.6,2508.5,6.677]
[1748150000452,8.0,2508.5,2508.1,0.05]
[1748150000643,8.0,2508.5,2508.2,6.362]
[1748150002064,5.40123606,2508.6,2508.1,0.05]
[1748150002065,13.40123606,2508.6,2508.1,0.05]
[1748150002266,2.34003834,2508.5,2508.1,0.05]
[1748150002496,0.37139486,2508.4,2508.2,6.363]
[1748150003734,2.29020321,2508.5,2508.2,6.363]
[1748150004465,2.29020321,2508.5,2508.1,0.05]
[1748150004678,2.34003828,2508.5,2508.1,0.05]
[1748150004849,1.54026028,2508.4,2508.2,6.363]
[1748150007269,10.388,2508.3,2508.2,6.363]
[1748150007477,8.0,2508.3,2508.2,33.085]
[1748150009575,8.7858,2508.2,2508.1,0.05]
[1748150009777,8.7858,2508.2,2508.1,6.413]
[1748150009968,11.23621348,2508.2,2508.1,6.413]
[1748150010677,11.6078275,2508.2,2508.1,6.413]
[1748150014788,21.10862354,2508.2,2508.1,6.413]
[1748150015791,21.10862354,2508.2,2508.1,6.414]
[1748150016489,21.10862354,2508.2,2508.1,0.05]
[1748150016785,21.10862354,2508.2,2508.1,6.414]
[1748150017568,13.10862354,2508.2,2508.1,33.138]
[1748150017778,24.04662354,2508.2,2508.1,21.047]
[1748150017968,24.04662354,2508.2,2508.1,27.411]
[1748150018586,24.04662354,2508.2,2508.1,14.369]
[1748150018758,24.04662354,2508.2,2508.1,13.061]
[1748150019894,24.04662354,2508.2,2508.1,0.05]
[1748150020191,24.04662354,2508.2,2508.1,6.414]
[1748150023416,23.49662354,2508.2,2508.1,0.05]
[1748150023564,22.71082354,2508.2,2508.1,6.414]
[1748150025080,22.71082354,2508.2,2508.1,0.05]
[1748150025404,17.87241006,2508.2,2508.1,7.1785]
[1748150027502,17.87241006,2508.2,2508.1,28.1455]
[1748150028001,17.87241006,2508.2,2508.1,13.8255]
[1748150028571,17.87241006,2508.2,2508.1,13.061]
[1748150031702,9.87241006,2508.2,2508.1,6.414]
[1748150031912,11.01367709,2508.2,2508.1,6.414]
[1748150033374,9.87241006,2508.2,2508.1,6.414]
[1748150035612,9.87241006,2508.2,2508.1,0.05]
[1748150035770,9.87241006,2508.2,2508.1,6.414]
[1748150037514,9.87241006,2508.2,2508.1,33.107]
[1748150039610,9.87241006,2508.2,2508.1,13.061]
[1748150041713,9.87241006,2508.2,2508.1,6.414]
[1748150043120,9.87241006,2508.2,2508.1,0.05]
[1748150043326,11.01367709,2508.2,2508.1,6.414]
[1748150044415,11.01367709,2508.2,2508.1,0.05]
[1748150044799,11.01367709,2508.2,2508.1,6.414]
[1748150045689,11.01367709,2508.2,2508.1,0.05]
[1748150045896,11.01367709,2508.2,2508.1,6.414]
[1748150046234,13.95167709,2508.2,2508.1,0.05]
[1748150046392,22.76107709,2508.2,2508.1,6.414]
[1748150047597,22.76107709,2508.2,2508.1,27.38]
[1748150048425,22.76107709,2508.2,2508.1,27.368]
[1748150050432,22.76107709,2508.2,2508.1,6.414]
[1748150051905,22.76107709,2508.2,2508.1,0.05]
[1748150052104,22.76107709,2508.2,2508.1,6.414]
[1748150053738,21.95167709,2508.2,2508.1,6.414]
[1748150056404,21.95167709,2508.2,2508.1,0.05]
[1748150056604,23.8693416,2508.2,2508.1,6.414]
[1748150056819,24.7005416,2508.2,2508.1,6.414]
[1748150057647,24.7005416,2508.2,2508.1,27.369]
[1748150059065,24.7005416,2508.2,2508.1,0.05]
[1748150059373,24.7005416,2508.2,2508.1,6.414]
[1748150060365,24.7005416,2508.2,2508.1,0.05]
[1748150060532,24.7005416,2508.2,2508.1,6.414]
[1748150061242,24.7005416,2508.2,2508.1,0.05]
[1748150061446,24.7005416,2508.2,2508.1,6.414]
[1748150062470,24.7005416,2508.2,2508.1,0.05]
[1748150062666,24.7005416,2508.2,2508.1,6.414]
[1748150064194,24.7005416,2508.2,2508.1,0.05]
[1748150064343,24.7005416,2508.2,2508.1,6.415]
[1748150065264,24.7005416,2508.2,2508.1,0.05]
[1748150065462,24.7005416,2508.2,2508.1,6.415]
[1748150066373,24.7005416,2508.2,2508.1,0.05]
[1748150066575,24.7005416,2508.2,2508.1,6.415]
[1748150067585,24.7005416,2508.2,2508.1,27.372]
[1748150068671,22.78287709,2508.2,2508.1,13.051]
[1748150068847,24.7005416,2508.2,2508.1,13.051]
[1748150070682,21.95167709,2508.2,2508.1,6.415]
[1748150073372,20.26041006,2508.2,2508.1,6.415]
[1748150077593,20.26041006,2508.2,2508.1,27.372]
[1748150079109,12.26041006,2508.2,2508.1,13.051]
[1748150080118,23.51447457,2508.2,2508.1,0.05]
[1748150080410,26.21171451,2508.2,2508.1,6.415]
[1748150080809,27.47076768,2508.2,2508.1,6.415]
[1748150081612,27.47076768,2508.2,2508.1,0.05]
[1748150081799,27.47076768,2508.2,2508.1,6.415]
[1748150082769,25.55310317,2508.2,2508.1,6.415]
[1748150082977,27.47076768,2508.2,2508.1,6.415]
[1748150083473,26.21171451,2508.2,2508.1,6.415]
[1748150083696,27.8151211,2508.2,2508.1,6.415]
[1748150086601,29.82523307,2508.2,2508.1,6.415]
[1748150087528,29.82523307,2508.2,2508.1,27.372]
[1748150089735,29.82523307,2508.2,2508.1,13.05]
[1748150091537,29.82523307,2508.2,2508.1,6.685]
[1748150091764,29.82523307,2508.2,2508.1,13.05]
[1748150093558,29.82523307,2508.2,2508.1,6.415]
[1748150093759,29.82523307,2508.2,2508.1,6.416]
[1748150095860,27.8151211,2508.2,2508.1,6.416]
[1748150096455,10.388,2508.0,2507.6,0.7555]
[1748150096663,4.30566451,2507.8,2507.6,0.7555]
[1748150097028,0.37161402,2507.7,2507.6,0.7555]
[1748150097425,0.37161402,2507.7,2507.6,21.7135]
[1748150097633,0.37161402,2507.7,2507.6,28.0795]
[1748150099933,0.37161402,2507.7,2507.6,13.7565]
[1748150102993,0.37161402,2507.7,2507.6,7.1215]
[1748150105914,9.50079604,2507.9,2507.7,0.8322]
[1748150107121,0.3722159,2507.8,2507.7,0.8322]
[1748150107527,0.3722159,2507.8,2507.7,27.5192]
[1748150109091,0.3722159,2507.8,2507.7,20.958]
[1748150109291,0.3722159,2507.8,2507.7,21.7843]
[1748150111219,0.3722159,2507.8,2507.7,7.4613]
[1748150112236,0.3722159,2507.8,2507.7,0.8263]
[1748150112606,9.50079604,2507.9,2507.7,0.8263]
[1748150117555,9.50079604,2507.9,2507.8,27.4549]
[1748150118068,0.37174836,2508.2,2507.9,0.7729]
[1748150118835,9.50079604,2508.4,2507.9,0.7729]
[1748150119878,0.37162237,2508.3,2507.9,0.7729]
[1748150121283,9.50079604,2508.4,2507.9,0.7729]
[1748150122771,12.59975595,2508.4,2507.9,0.7729]
[1748150123089,0.37161084,2508.3,2508.0,6.364]
[1748150123891,9.87240688,2508.3,2508.0,6.364]
[1748150124170,9.50079604,2508.3,2508.0,6.364]
[1748150127458,8.0,2508.2,2508.1,27.4402]
[1748150128589,9.50079604,2508.3,2508.1,21.7122]
[1748150128881,9.50079604,2508.3,2508.2,0.7592]
[1748150129096,9.50079604,2508.9,2508.2,0.7592]
[1748150129270,10.92567043,2508.9,2508.2,0.7592]
[1748150129505,8.0,2508.8,2508.2,0.7592]
[1748150129982,0.371785,2508.7,2508.2,0.7592]
[1748150130808,8.0,2508.8,2508.2,0.7592]
[1748150132314,0.37167767,2508.7,2508.2,0.7592]
[1748150132488,8.0,2508.6,2508.2,0.7592]
[1748150133500,8.0,2508.8,2508.2,0.7592]
[1748150137582,8.0,2508.8,2508.4,0.7637]
[1748150142035,9.91766451,2508.8,2508.4,0.7637]
[1748150142219,1.94184605,2508.7,2508.5,6.363]
[1748150142422,1.94184605,2508.7,2508.6,6.363]
[1748150142730,4.32984605,2508.7,2508.6,6.363]
[1748150144547,13.83064209,2508.7,2508.6,6.363]
[1748150147528,13.83064209,2508.7,2508.6,33.034]
[1748150147730,11.88879604,2508.7,2508.6,33.034]
[1748150148446,11.88879604,2508.7,2508.6,27.308]
[1748150150544,11.88879604,2508.7,2508.6,12.992]
[1748150152565,11.88879604,2508.7,2508.6,6.363]
[1748150154277,9.50079604,2508.7,2508.6,6.363]
[1748150157496,9.50079604,2508.7,2508.6,33.033]
[1748150159388,9.87336506,2508.7,2508.6,33.033]
[1748150159978,9.87336506,2508.7,2508.6,12.991]
[1748150160782,9.87336506,2508.7,2508.6,6.363]
[1748150161686,9.50079604,2508.7,2508.6,6.363]
[1748150162204,9.50079604,2509.0,2508.6,7.1566]
[1748150163500,0.37261245,2508.9,2508.6,7.1566]
[1748150164923,9.50079604,2509.0,2508.7,8.7589]
[1748150165227,9.50079604,2509.0,2508.9,0.7589]
[1748150165420,9.50079604,2509.5,2509.0,0.7589]
[1748150165566,9.50079604,2509.5,2508.9,8.0]
[1748150165567,9.50079604,2509.5,2509.1,8.28027031]
[1748150165768,9.50079604,2509.5,2509.2,0.7589]
[1748150167326,9.50079604,2509.5,2509.4,0.7589]
[1748150167483,9.50079604,2509.5,2509.4,27.4279]
[1748150167681,9.50079604,2509.5,2509.4,7.3869]
[1748150168086,9.50079604,2509.5,2509.4,15.3869]
[1748150168518,9.50079604,2509.5,2509.4,8.7589]
[1748150170985,2.05978336,2509.9,2509.4,8.7589]
[1748150171324,2.05978336,2509.9,2509.5,6.361]
[1748150172224,0.05,2509.9,2509.5,6.361]
[1748150176549,0.05,2509.9,2509.6,0.7739]
[1748150177537,0.05,2509.9,2509.7,26.659]
[1748150178800,0.05,2509.9,2509.7,6.624]
[1748150181519,0.05,2509.9,2509.6,0.7739]
[1748150183767,0.05,2509.9,2509.7,6.36]
[1748150185193,0.05,2509.9,2509.8,0.7993]
[1748150185363,0.05,2509.9,2509.8,8.7993]
[1748150187702,0.05,2509.9,2509.8,21.7803]
[1748150188215,0.05,2509.9,2509.8,15.1583]
[1748150193519,0.05,2509.9,2509.8,15.1573]
[1748150196625,0.05,2509.9,2509.8,8.7993]
[1748150196831,0.05,2509.9,2509.8,15.1573]
[1748150197529,0.05,2509.9,2509.8,41.8073]
[1748150199232,0.05,2509.9,2509.8,15.1573]
[1748150202459,0.05,2509.9,2509.5,0.7775]
[1748150202735,0.05,2509.9,2509.3,1.91827031]
[1748150202736,0.05,2509.9,2509.6,6.358]
[1748150207624,0.05,2509.9,2509.7,26.651]
[1748150208752,0.05,2509.9,2509.7,20.928]
[1748150211659,0.05,2509.9,2509.8,6.359]
[1748150217572,0.05,2509.9,2509.8,33.01]
[1748150219364,0.05,2509.9,2509.8,12.979]
[1748150222269,0.05,2509.9,2509.8,6.359]
[1748150225950,0.05,2509.9,2509.4,0.827]
[1748150226158,0.05,2509.9,2509.5,6.359]
[1748150226375,0.8508,2509.9,2509.5,6.359]
[1748150226984,0.8508,2509.9,2509.3,1.91827031]
[1748150227280,0.8508,2509.9,2509.4,6.359]
[1748150227486,0.8008,2509.7,2509.5,26.651]
[1748150227976,0.8008,2509.7,2509.5,6.62]
[1748150228178,0.8008,2509.7,2509.0,0.7724]
[1748150228383,0.8008,2509.5,2508.9,1.91827031]
[1748150228565,0.8008,2509.5,2509.0,6.359]
[1748150230158,0.7877,2509.7,2509.1,1.91827031]
[1748150230488,0.7877,2509.7,2509.2,0.7757]
[1748150230688,1.8215496,2509.7,2509.2,0.7757]
[1748150230860,0.37187904,2509.6,2509.2,0.7757]
[1748150231354,0.37187904,2509.6,2509.1,1.91827031]
[1748150231787,1.8215496,2509.7,2509.1,1.91827031]
[1748150232959,11.32234564,2509.7,2509.1,1.91827031]
[1748150233176,0.66530757,2509.6,2509.1,1.91827031]
[1748150234488,0.66530757,2509.6,2509.2,6.36]
[1748150234681,0.66530757,2509.6,2509.1,1.91827031]
[1748150234873,0.66530757,2509.6,2509.2,6.36]
[1748150237497,0.66530757,2509.6,2509.3,26.654]
[1748150237670,11.32234564,2509.7,2509.3,26.654]
[1748150238707,11.32234564,2509.7,2509.3,20.93]
[1748150242909,11.32234564,2509.7,2509.2,6.36]
[1748150243713,11.32234564,2509.7,2509.0,0.7757]
[1748150243902,11.32234564,2509.7,2509.3,6.36]
[1748150244101,1.13223456,2509.6,2509.3,6.36]
[1748150244614,0.7737,2509.5,2508.8,0.7741]
[1748150244829,0.7737,2509.3,2508.3,1.91827031]
[1748150245002,0.7737,2509.1,2508.4,7.1341]
[1748150245204,0.7737,2508.9,2508.0,0.631795]
[1748150245513,0.7737,2508.8,2508.3,6.36]
[1748150245919,9.87245576,2508.7,2508.3,6.36]
[1748150246488,9.50079604,2508.7,2508.3,6.36]
[1748150247120,9.50079604,2508.7,2507.9,2.69237031]
[1748150247299,0.7737,2508.6,2508.0,6.36]
[1748150247501,0.7737,2508.6,2508.1,20.933]
[1748150248035,0.7737,2508.6,2508.2,6.361]
[1748150248609,0.7737,2508.6,2508.3,6.361]
[1748150249621,0.7737,2508.6,2508.4,6.361]
[1748150249791,1.92307727,2508.6,2508.4,6.361]
[1748150250627,9.50079604,2508.5,2508.4,6.361]
[1748150252324,9.50079604,2508.5,2507.8,8.0]
[1748150252536,9.50079604,2508.5,2507.9,6.362]
[1748150254429,10.76511104,2508.5,2507.9,6.362]
[1748150257539,10.76511104,2508.5,2508.0,26.664]
[1748150257850,0.8331,2508.3,2508.1,6.622]
[1748150258055,1.3831,2508.2,2508.1,6.622]
[1748150258351,12.40789669,2508.2,2508.1,12.984]
[1748150258549,12.40789669,2508.2,2508.1,6.362]
[1748150258729,12.40789669,2508.2,2507.3,0.7851]
[1748150258933,0.8331,2508.1,2507.4,6.363]
[1748150262346,9.50079604,2508.0,2507.4,6.363]
[1748150263945,10.78113276,2508.0,2507.4,6.363]
[1748150266522,0.8188,2507.9,2507.5,6.364]
[1748150266929,0.8188,2507.9,2507.1,2.77287031]
[1748150267140,0.8188,2507.9,2507.2,6.364]
[1748150267441,0.8188,2507.9,2507.3,12.092]
[1748150267632,4.36679328,2507.8,2507.3,33.033]
[1748150268308,13.86758932,2507.8,2507.3,33.033]
[1748150269550,13.86758932,2507.8,2507.4,12.985]
[1748150270207,13.86758932,2507.8,2507.1,1.96827031]
[1748150270406,0.7572,2507.7,2507.2,6.364]
[1748150271454,0.7572,2507.7,2507.1,0.05]
[1748150271627,0.7572,2507.7,2507.3,6.364]
[1748150271832,1.79852321,2507.7,2507.3,6.364]
[1748150273241,1.79852321,2507.7,2507.4,6.364]
[1748150274533,9.79852321,2507.7,2507.5,6.364]
[1748150274830,9.79852321,2507.7,2507.1,0.05]
[1748150275046,9.79852321,2507.7,2507.2,6.365]
[1748150277455,9.79852321,2507.7,2507.3,14.321]
[1748150277657,8.0,2507.6,2507.4,12.987]
[1748150278858,8.0,2507.6,2507.4,6.365]
[1748150280352,8.0,2507.7,2507.6,0.755]
[1748150281719,9.50079604,2507.8,2507.6,0.755]
[1748150282957,8.0,2508.0,2507.6,0.755]
[1748150284042,8.37157297,2508.1,2507.6,0.755]
[1748150284442,8.0,2508.1,2507.6,0.755]
[1748150286056,0.6333168,2508.5,2507.9,1.91827031]
[1748150286258,0.6333168,2508.5,2508.0,6.365]
[1748150286504,8.6333168,2508.5,2508.0,6.365]
[1748150286895,8.6333168,2508.5,2508.1,0.755]
[1748150287207,8.0,2508.5,2508.1,0.755]
[1748150287546,9.50079604,2508.6,2508.2,20.943]
[1748150287868,0.37186686,2508.5,2508.2,6.622]
[1748150288452,0.37186686,2508.5,2508.2,0.755]
[1748150288977,9.50079604,2508.6,2508.2,0.755]
[1748150291195,9.50079604,2508.6,2508.3,6.364]
[1748150291761,10.52969564,2508.6,2508.4,6.364]
[1748150295603,0.7942,2508.4,2507.7,0.7876]
[1748150296111,0.7942,2508.4,2507.8,6.363]
[1748150297419,0.7942,2508.4,2507.7,0.7876]
[1748150297420,2.388,2508.3,2507.7,0.7876]
[1748150297633,2.388,2508.3,2507.9,14.318]
[1748150297922,0.7942,2508.1,2508.0,6.618]
[1748150298119,0.7942,2508.1,2508.0,6.363]
[1748150301193,9.50079604,2508.2,2508.0,6.363]
[1748150303719,0.7968,2508.1,2507.2,0.8162]
[1748150303922,14.60386635,2508.1,2507.2,0.8162]
[1748150304076,2.22228664,2508.0,2507.3,6.364]
[1748150306638,2.22228664,2508.0,2507.3,8.28227031]
[1748150307531,2.22228664,2508.0,2507.4,26.667]
[1748150308825,2.22228664,2508.0,2507.4,6.619]
[1748150309122,0.7619,2508.0,2507.4,6.619]
[1748150309616,10.26269604,2508.0,2507.4,6.619]
[1748150309835,9.50079604,2508.0,2507.5,1.91827031]
[1748150310124,9.50079604,2508.0,2507.6,0.7892]
[1748150310645,9.50079604,2508.0,2507.3,2.70747031]
[1748150310646,10.59039732,2508.0,2507.3,2.70747031]
[1748150310790,10.59039732,2508.0,2507.4,6.364]
[1748150311123,10.59039732,2508.0,2507.5,6.364]
[1748150313830,9.50079604,2508.0,2507.5,6.364]
[1748150315416,9.50079604,2508.0,2507.6,0.7892]
[1748150317631,9.50079604,2508.0,2507.7,26.667]
[1748150318152,9.50079604,2508.0,2507.7,1.91827031]
[1748150320705,9.50079604,2508.0,2507.6,0.7892]
[1748150320905,9.50079604,2508.0,2507.6,2.70747031]
[1748150321344,0.3714383,2508.3,2507.7,0.8107]
[1748150322140,0.3714383,2508.3,2507.8,1.91827031]
[1748150323224,0.3714383,2508.3,2507.9,0.8107]
[1748150325505,9.50079604,2508.4,2507.9,0.8107]
[1748150325899,9.50079604,2508.4,2508.0,6.364]
[1748150327495,9.50079604,2508.4,2508.1,26.663]
[1748150327695,0.8173,2508.3,2508.1,14.319]
[1748150327899,0.8173,2508.3,2508.2,12.981]
[1748150328304,0.8173,2508.3,2507.5,8.0]
[1748150328722,0.8173,2508.3,2507.4,0.7677]
[1748150328921,0.8173,2508.3,2507.5,6.364]
[1748150329120,1.41354756,2508.2,2507.5,6.364]
[1748150329328,1.78518319,2508.2,2507.5,6.364]
[1748150330037,1.41354756,2508.2,2507.5,6.364]
[1748150332545,10.13411284,2508.4,2508.0,1.91827031]
[1748150332751,10.13411284,2508.4,2508.2,1.91827031]
[1748150332909,10.13411284,2508.4,2508.3,6.364]
[1748150333804,9.50079604,2508.4,2508.3,6.364]
[1748150337656,9.50079604,2508.4,2508.3,33.026]
[1748150339242,9.50079604,2508.4,2508.3,6.364]
[1748150340521,9.50079604,2508.4,2508.3,6.363]
[1748150341882,0.7888,2508.7,2508.3,6.363]
[1748150342495,0.7888,2508.7,2508.4,6.363]